[Event "Late-Titled-Tuesday-Blitz-November-28-2023"]
[Site "Chess.com"]
[Date "2023.11.28"]
[Round "5"]
[White "Blackwhite017"]
[Black "emeli_chess"]
[Result "0-1"]
[WhiteElo "2057"]
[BlackElo "2371"]
[TimeControl "180+1"]
[EndTime "14:53:34 PST"]
[Termination "emeli_chess won on time"]

1. e4 {[%clk 0:02:34.4]} 1... c5 {[%clk 0:02:58.9]} 2. Nf3 {[%clk 0:02:34.5]}
2... e6 {[%clk 0:02:58.8]} 3. d4 {[%clk 0:02:34.2]} 3... cxd4 {[%clk 0:02:59]}
4. Nxd4 {[%clk 0:02:35.1]} 4... a6 {[%clk 0:02:59.2]} 5. Nc3 {[%clk 0:02:35.1]}
5... Qc7 {[%clk 0:02:55.4]} 6. g3 {[%clk 0:02:34.4]} 6... b6 {[%clk 0:02:44.1]}
7. Bg2 {[%clk 0:02:34.5]} 7... Bb7 {[%clk 0:02:44.4]} 8. O-O {[%clk 0:02:33.7]}
8... d6 {[%clk 0:02:41.7]} 9. Re1 {[%clk 0:02:31.2]} 9... Nd7 {[%clk 0:02:40.8]}
10. Bh3 {[%clk 0:02:09.1]} 10... Ngf6 {[%clk 0:02:11]} 11. Bg5 {[%clk
0:02:06.3]} 11... Be7 {[%clk 0:02:08.9]} 12. Bxe6 {[%clk 0:02:03.6]} 12... fxe6
{[%clk 0:02:03.4]} 13. Nxe6 {[%clk 0:02:04.3]} 13... Qc4 {[%clk 0:01:59.8]} 14.
Nxg7+ {[%clk 0:02:03.2]} 14... Kf7 {[%clk 0:01:23.6]} 15. Nf5 {[%clk 0:02:00.8]}
15... Ne5 {[%clk 0:01:03.7]} 16. Bxf6 {[%clk 0:01:34.5]} 16... Kxf6 {[%clk
0:00:53.7]} 17. Nxd6 {[%clk 0:01:24.9]} 17... Bxd6 {[%clk 0:00:47.7]} 18. Qxd6+
{[%clk 0:01:24.2]} 18... Qe6 {[%clk 0:00:47.5]} 19. Qc7 {[%clk 0:01:01.6]} 19...
Nf3+ {[%clk 0:00:45.4]} 20. Kg2 {[%clk 0:00:59.9]} 20... Nxe1+ {[%clk
0:00:45.1]} 21. Rxe1 {[%clk 0:00:59.9]} 21... Bc6 {[%clk 0:00:37.5]} 22. Re3
{[%clk 0:00:52.6]} 22... Rhc8 {[%clk 0:00:28.2]} 23. Rf3+ {[%clk 0:00:45]} 23...
Kg6 {[%clk 0:00:28.3]} 24. Qxb6 {[%clk 0:00:19.2]} 24... Rab8 {[%clk 0:00:26.7]}
25. Qd4 {[%clk 0:00:08.1]} 25... Rd8 {[%clk 0:00:22.8]} 26. Qe3 {[%clk
0:00:07.9]} 26... Rf8 {[%clk 0:00:19.9]} 27. Rxf8 {[%clk 0:00:04.4]} 27... Rxf8
{[%clk 0:00:19.3]} 28. f4 {[%clk 0:00:05]} 28... Re8 {[%clk 0:00:14.6]} 29. f5+
{[%clk 0:00:02.2]} 29... Qxf5 {[%clk 0:00:14.1]} 0-1

[Event "Late-Titled-Tuesday-Blitz-November-28-2023"]
[Site "Chess.com"]
[Date "2023.11.28"]
[Round "5"]
[White "Arash_Tahbaz"]
[Black "grandemestregringo"]
[Result "0-1"]
[WhiteElo "2881"]
[BlackElo "2655"]
[TimeControl "180+1"]
[EndTime "14:53:36 PST"]
[Termination "grandemestregringo won on time"]

1. Nf3 {[%clk 0:01:33.7]} 1... f5 {[%clk 0:02:58.7]} 2. g3 {[%clk 0:01:34.6]}
2... Nf6 {[%clk 0:02:58.7]} 3. Bg2 {[%clk 0:01:35.5]} 3... g6 {[%clk 0:02:59.3]}
4. O-O {[%clk 0:01:36.3]} 4... Bg7 {[%clk 0:02:59.8]} 5. d3 {[%clk 0:01:37.2]}
5... O-O {[%clk 0:02:59.8]} 6. e4 {[%clk 0:01:36.8]} 6... d6 {[%clk 0:02:47.7]}
7. c3 {[%clk 0:01:25.9]} 7... fxe4 {[%clk 0:02:44]} 8. dxe4 {[%clk 0:01:25.9]}
8... e5 {[%clk 0:02:44.9]} 9. Re1 {[%clk 0:01:15.3]} 9... Nc6 {[%clk 0:02:45]}
10. Nbd2 {[%clk 0:01:08.1]} 10... Kh8 {[%clk 0:02:45.1]} 11. Qc2 {[%clk
0:01:06.8]} 11... Qe7 {[%clk 0:02:44.3]} 12. b4 {[%clk 0:01:06.5]} 12... Be6
{[%clk 0:02:42.3]} 13. a4 {[%clk 0:01:03.2]} 13... Nd7 {[%clk 0:02:35.8]} 14.
Bb2 {[%clk 0:00:45.3]} 14... Bh6 {[%clk 0:02:33.9]} 15. Qd3 {[%clk 0:00:37.9]}
15... a5 {[%clk 0:02:31.2]} 16. b5 {[%clk 0:00:27.8]} 16... Nc5 {[%clk 0:02:31]}
17. Qc2 {[%clk 0:00:28.5]} 17... Nb8 {[%clk 0:02:25.7]} 18. Ba3 {[%clk
0:00:28.8]} 18... Nbd7 {[%clk 0:02:25.8]} 19. h4 {[%clk 0:00:27.9]} 19... Qf7
{[%clk 0:02:14.5]} 20. Rf1 {[%clk 0:00:28.5]} 20... Qf6 {[%clk 0:02:08.4]} 21.
c4 {[%clk 0:00:26.8]} 21... Rf7 {[%clk 0:02:05.8]} 22. Nb3 {[%clk 0:00:23.8]}
22... Nxa4 {[%clk 0:01:48.1]} 23. Ng5 {[%clk 0:00:22.6]} 23... Bxg5 {[%clk
0:01:41]} 24. hxg5 {[%clk 0:00:23.5]} 24... Qe7 {[%clk 0:01:35.8]} 25. f4 {[%clk
0:00:23.6]} 25... Nab6 {[%clk 0:01:30]} 26. Nd2 {[%clk 0:00:20.8]} 26... Raf8
{[%clk 0:01:27]} 27. Bb2 {[%clk 0:00:21.1]} 27... Kg8 {[%clk 0:01:26.8]} 28. Qd3
{[%clk 0:00:06.1]} 28... exf4 {[%clk 0:01:14.5]} 29. gxf4 {[%clk 0:00:07]} 29...
Rxf4 {[%clk 0:01:14.4]} 30. Rxf4 {[%clk 0:00:07.7]} 30... Rxf4 {[%clk
0:01:14.2]} 31. Qg3 {[%clk 0:00:08.4]} 31... Rf8 {[%clk 0:01:10.1]} 32. c5
{[%clk 0:00:07.9]} 32... Nc4 {[%clk 0:00:42.8]} 33. Nxc4 {[%clk 0:00:04.5]}
33... Bxc4 {[%clk 0:00:42.8]} 34. cxd6 {[%clk 0:00:05.1]} 34... cxd6 {[%clk
0:00:43.4]} 35. Rxa5 {[%clk 0:00:03.1]} 35... Ne5 {[%clk 0:00:41.7]} 36. Ra1
{[%clk 0:00:03.6]} 36... Bxb5 {[%clk 0:00:38]} 37. Rd1 {[%clk 0:00:02.5]} 37...
Bc4 {[%clk 0:00:36.5]} 38. Bd4 {[%clk 0:00:02.2]} 38... b5 {[%clk 0:00:36.3]}
39. Qc3 {[%clk 0:00:02.7]} 39... Qxg5 {[%clk 0:00:34.9]} 40. Qb4 {[%clk
0:00:02.3]} 40... Nf3+ {[%clk 0:00:33.1]} 0-1

[Event "Late-Titled-Tuesday-Blitz-November-28-2023"]
[Site "Chess.com"]
[Date "2023.11.28"]
[Round "5"]
[White "nitpicker"]
[Black "DvaHrasta"]
[Result "0-1"]
[WhiteElo "2313"]
[BlackElo "2499"]
[TimeControl "180+1"]
[EndTime "14:53:37 PST"]
[Termination "DvaHrasta won on time"]

1. d4 {[%clk 0:03:00.9]} 1... Nf6 {[%clk 0:02:59.1]} 2. c4 {[%clk 0:02:59.7]}
2... e6 {[%clk 0:02:59.1]} 3. g3 {[%clk 0:02:59]} 3... d5 {[%clk 0:02:58.2]} 4.
Nf3 {[%clk 0:02:58.9]} 4... Bb4+ {[%clk 0:02:57.9]} 5. Bd2 {[%clk 0:02:58]} 5...
Be7 {[%clk 0:02:57.9]} 6. Qc2 {[%clk 0:02:57.8]} 6... O-O {[%clk 0:02:56.8]} 7.
Bg2 {[%clk 0:02:58]} 7... c6 {[%clk 0:02:56.3]} 8. O-O {[%clk 0:02:57.5]} 8...
a5 {[%clk 0:02:56.3]} 9. Rd1 {[%clk 0:02:56.6]} 9... a4 {[%clk 0:02:53.4]} 10.
Bf4 {[%clk 0:02:52.6]} 10... b5 {[%clk 0:02:48.9]} 11. cxb5 {[%clk 0:02:36.4]}
11... cxb5 {[%clk 0:02:47.7]} 12. Nc3 {[%clk 0:02:16.2]} 12... Qa5 {[%clk
0:02:38.3]} 13. a3 {[%clk 0:01:53.1]} 13... Bd7 {[%clk 0:02:14.9]} 14. Ne5
{[%clk 0:01:52.6]} 14... Be8 {[%clk 0:02:12.2]} 15. e4 {[%clk 0:01:50.8]} 15...
b4 {[%clk 0:01:48.7]} 16. axb4 {[%clk 0:01:34.6]} 16... Bxb4 {[%clk 0:01:47.5]}
17. exd5 {[%clk 0:01:08.8]} 17... exd5 {[%clk 0:01:42.7]} 18. Rd3 {[%clk
0:00:27.1]} 18... h6 {[%clk 0:01:23.7]} 19. Rf3 {[%clk 0:00:26.2]} 19... Ra6
{[%clk 0:01:18.2]} 20. Na2 {[%clk 0:00:22.5]} 20... Bd6 {[%clk 0:01:00.7]} 21.
Bd2 {[%clk 0:00:21.5]} 21... Qd8 {[%clk 0:00:57.4]} 22. Bb4 {[%clk 0:00:17.4]}
22... Ne4 {[%clk 0:00:50.6]} 23. Bxd6 {[%clk 0:00:16]} 23... Qxd6 {[%clk
0:00:45.3]} 24. Nc3 {[%clk 0:00:16.2]} 24... f5 {[%clk 0:00:31.4]} 25. Nxa4
{[%clk 0:00:12.6]} 25... Nd7 {[%clk 0:00:21.2]} 26. Rfa3 {[%clk 0:00:12.1]}
26... Nxe5 {[%clk 0:00:18.3]} 27. dxe5 {[%clk 0:00:11.3]} 27... Qxe5 {[%clk
0:00:18.5]} 28. Nc5 {[%clk 0:00:10.2]} 28... Rxa3 {[%clk 0:00:18]} 29. Rxa3
{[%clk 0:00:09.9]} 29... Bg6 {[%clk 0:00:17.8]} 30. Nxe4 {[%clk 0:00:08.5]}
30... fxe4 {[%clk 0:00:17.8]} 31. Ra7 {[%clk 0:00:06.8]} 31... d4 {[%clk
0:00:15.9]} 32. b4 {[%clk 0:00:06.1]} 32... Kh7 {[%clk 0:00:14.7]} 33. Qc7
{[%clk 0:00:04.4]} 33... Qxc7 {[%clk 0:00:14]} 34. Rxc7 {[%clk 0:00:04.5]} 34...
Rd8 {[%clk 0:00:12.6]} 35. Rc1 {[%clk 0:00:01.1]} 35... Rb8 {[%clk 0:00:11.1]}
0-1

[Event "Late-Titled-Tuesday-Blitz-November-28-2023"]
[Site "Chess.com"]
[Date "2023.11.28"]
[Round "5"]
[White "ploxoi"]
[Black "Meri-Arabidze"]
[Result "0-1"]
[WhiteElo "2459"]
[BlackElo "2685"]
[TimeControl "180+1"]
[EndTime "14:53:40 PST"]
[Termination "Meri-Arabidze won by resignation"]

1. d4 {[%clk 0:03:00.9]} 1... f5 {[%clk 0:02:58.1]} 2. Nf3 {[%clk 0:02:59.7]}
2... Nf6 {[%clk 0:02:58]} 3. g3 {[%clk 0:03:00.6]} 3... b6 {[%clk 0:02:57]} 4.
Bg2 {[%clk 0:03:00.7]} 4... Bb7 {[%clk 0:02:57.2]} 5. O-O {[%clk 0:03:01]} 5...
e6 {[%clk 0:02:57.6]} 6. b3 {[%clk 0:03:00.1]} 6... Be7 {[%clk 0:02:57.1]} 7. c4
{[%clk 0:02:58.8]} 7... O-O {[%clk 0:02:57.1]} 8. Bb2 {[%clk 0:02:56.5]} 8... a5
{[%clk 0:02:55.4]} 9. Nc3 {[%clk 0:02:48.7]} 9... Na6 {[%clk 0:02:55.3]} 10. a3
{[%clk 0:02:47.3]} 10... Ne4 {[%clk 0:02:50.9]} 11. Qc2 {[%clk 0:02:42.3]} 11...
Bf6 {[%clk 0:02:50]} 12. Ne1 {[%clk 0:02:32.8]} 12... Bxd4 {[%clk 0:02:39.8]}
13. Nxe4 {[%clk 0:02:05.3]} 13... Bxb2 {[%clk 0:02:38.6]} 14. Qxb2 {[%clk
0:02:05.6]} 14... Bxe4 {[%clk 0:02:35.7]} 15. Bxe4 {[%clk 0:02:05.8]} 15... fxe4
{[%clk 0:02:36.6]} 16. Nc2 {[%clk 0:02:04.5]} 16... Qf6 {[%clk 0:02:19.8]} 17.
Qxf6 {[%clk 0:01:58.2]} 17... gxf6 {[%clk 0:02:20.7]} 18. Rad1 {[%clk 0:01:58]}
18... Rf7 {[%clk 0:02:18.2]} 19. f3 {[%clk 0:01:52.7]} 19... exf3 {[%clk
0:02:16.9]} 20. Rxf3 {[%clk 0:01:53.6]} 20... f5 {[%clk 0:02:17.2]} 21. Re3
{[%clk 0:01:50.2]} 21... Nc5 {[%clk 0:02:14.2]} 22. Nd4 {[%clk 0:01:41.9]} 22...
Ne4 {[%clk 0:02:08.2]} 23. Nb5 {[%clk 0:01:42.5]} 23... Rc8 {[%clk 0:02:01.8]}
24. Nc3 {[%clk 0:01:41.3]} 24... Nf6 {[%clk 0:01:53.4]} 25. h3 {[%clk
0:01:33.6]} 25... Re8 {[%clk 0:01:50.7]} 26. Nb5 {[%clk 0:01:28.2]} 26... d6
{[%clk 0:01:43.8]} 27. b4 {[%clk 0:01:28.4]} 27... axb4 {[%clk 0:01:43.3]} 28.
axb4 {[%clk 0:01:29.3]} 28... h5 {[%clk 0:01:39.3]} 29. Ra1 {[%clk 0:01:28.7]}
29... Rg7 {[%clk 0:01:33.7]} 30. Kh2 {[%clk 0:01:26.5]} 30... h4 {[%clk
0:01:31.3]} 31. Ra7 {[%clk 0:01:20]} 31... Ree7 {[%clk 0:01:25.7]} 32. gxh4
{[%clk 0:01:12.1]} 32... f4 {[%clk 0:01:25.6]} 33. Rea3 {[%clk 0:01:10.9]} 33...
e5 {[%clk 0:01:25]} 34. Ra8+ {[%clk 0:01:08.5]} 34... Kh7 {[%clk 0:01:24.8]} 35.
Rc8 {[%clk 0:01:08.9]} 35... e4 {[%clk 0:01:16.2]} 36. Nd4 {[%clk 0:01:06.7]}
36... Re5 {[%clk 0:01:06.2]} 37. Nc6 {[%clk 0:01:02.3]} 37... Rf5 {[%clk
0:00:57.2]} 38. Nd4 {[%clk 0:00:58.5]} 38... Re5 {[%clk 0:00:57.3]} 39. Nc6
{[%clk 0:00:57]} 39... Rh5 {[%clk 0:00:57.2]} 40. Nd4 {[%clk 0:00:53.4]} 40...
e3 {[%clk 0:00:41.3]} 41. Ne6 {[%clk 0:00:49.4]} 41... Ng4+ {[%clk 0:00:34.2]}
42. hxg4 {[%clk 0:00:43.5]} 42... Rxh4+ {[%clk 0:00:34.3]} 43. Kg2 {[%clk
0:00:44]} 43... Rgxg4+ {[%clk 0:00:31.5]} 44. Kf3 {[%clk 0:00:44.3]} 44... Rg3+
{[%clk 0:00:29.6]} 45. Ke4 {[%clk 0:00:44.6]} 45... f3+ {[%clk 0:00:30]} 46.
Kxe3 {[%clk 0:00:45.2]} 46... fxe2+ {[%clk 0:00:27.8]} 47. Kxe2 {[%clk
0:00:46.1]} 47... Rh2+ {[%clk 0:00:22.8]} 48. Kf1 {[%clk 0:00:44.8]} 48... Rxa3
{[%clk 0:00:23.4]} 49. Rxc7+ {[%clk 0:00:45.4]} 49... Kh6 {[%clk 0:00:22.7]} 50.
Kg1 {[%clk 0:00:39.6]} 50... Re2 {[%clk 0:00:22.2]} 51. Rf7 {[%clk 0:00:40.2]}
51... Ra1+ {[%clk 0:00:20.6]} 52. Rf1 {[%clk 0:00:40.6]} 52... Rxf1+ {[%clk
0:00:20.5]} 53. Kxf1 {[%clk 0:00:40.9]} 53... Rxe6 {[%clk 0:00:21.2]} 0-1

[Event "Late-Titled-Tuesday-Blitz-November-28-2023"]
[Site "Chess.com"]
[Date "2023.11.28"]
[Round "5"]
[White "Matthew_Clarke"]
[Black "maurovargas01"]
[Result "1-0"]
[WhiteElo "2256"]
[BlackElo "1840"]
[TimeControl "180+1"]
[EndTime "14:53:44 PST"]
[Termination "Matthew_Clarke won on time"]

1. e4 {[%clk 0:03:00.9]} 1... e5 {[%clk 0:01:52.7]} 2. Nf3 {[%clk 0:02:52.2]}
2... Nf6 {[%clk 0:01:52.1]} 3. Nxe5 {[%clk 0:02:51.3]} 3... d6 {[%clk
0:01:52.2]} 4. Nf3 {[%clk 0:02:51.8]} 4... Nxe4 {[%clk 0:01:51.7]} 5. Nc3 {[%clk
0:02:52.4]} 5... Nf6 {[%clk 0:01:51.6]} 6. d4 {[%clk 0:02:44.5]} 6... Be7 {[%clk
0:01:49.6]} 7. Bd3 {[%clk 0:02:38.9]} 7... O-O {[%clk 0:01:46.7]} 8. h3 {[%clk
0:02:36.1]} 8... Re8 {[%clk 0:01:46.2]} 9. O-O {[%clk 0:02:35.9]} 9... Nbd7
{[%clk 0:01:39.8]} 10. Bf4 {[%clk 0:02:32.6]} 10... c6 {[%clk 0:01:29.1]} 11.
Ne2 {[%clk 0:02:23.1]} 11... Nf8 {[%clk 0:01:20.1]} 12. g4 {[%clk 0:01:59]}
12... Be6 {[%clk 0:01:11.8]} 13. Ng3 {[%clk 0:01:49.9]} 13... Nd5 {[%clk
0:01:11]} 14. Bd2 {[%clk 0:01:49.4]} 14... Kh8 {[%clk 0:01:01.3]} 15. c4 {[%clk
0:01:47.9]} 15... Nf6 {[%clk 0:00:46.9]} 16. Nh2 {[%clk 0:01:25.3]} 16... Qb6
{[%clk 0:00:37.1]} 17. Bc3 {[%clk 0:01:24.6]} 17... d5 {[%clk 0:00:36.4]} 18. c5
{[%clk 0:01:24]} 18... Qc7 {[%clk 0:00:31]} 19. f4 {[%clk 0:01:23.7]} 19... Ne4
{[%clk 0:00:13.4]} 20. Nxe4 {[%clk 0:01:19.4]} 20... dxe4 {[%clk 0:00:13.3]} 21.
Bxe4 {[%clk 0:01:19.4]} 21... Rad8 {[%clk 0:00:12.4]} 22. Qf3 {[%clk 0:01:15.6]}
22... Bc4 {[%clk 0:00:11]} 23. Rfd1 {[%clk 0:01:13.3]} 23... Ng6 {[%clk
0:00:06.3]} 24. b3 {[%clk 0:00:52.3]} 24... Ba6 {[%clk 0:00:06]} 25. f5 {[%clk
0:00:48.5]} 25... Nh4 {[%clk 0:00:04]} 26. Qe3 {[%clk 0:00:42.6]} 26... h6
{[%clk 0:00:03.6]} 27. Kh1 {[%clk 0:00:37.9]} 27... Bg5 {[%clk 0:00:03.5]} 28.
Qe1 {[%clk 0:00:31.6]} 28... Re7 {[%clk 0:00:02.9]} 29. Ba5 {[%clk 0:00:17.7]}
29... Rde8 {[%clk 0:00:03.2]} 30. Bxc7 {[%clk 0:00:17.4]} 30... Rxe4 {[%clk
0:00:03]} 31. Qg3 {[%clk 0:00:17.1]} 31... Re3 {[%clk 0:00:02.6]} 32. Qd6 {[%clk
0:00:16.7]} 32... Rxh3 {[%clk 0:00:02.6]} 33. Re1 {[%clk 0:00:15.1]} 1-0

[Event "Late-Titled-Tuesday-Blitz-November-28-2023"]
[Site "Chess.com"]
[Date "2023.11.28"]
[Round "5"]
[White "krzyzan94"]
[Black "zverr1"]
[Result "1-0"]
[WhiteElo "2739"]
[BlackElo "2526"]
[TimeControl "180+1"]
[EndTime "14:53:47 PST"]
[Termination "krzyzan94 won on time"]

1. Nf3 {[%clk 0:03:00.9]} 1... g6 {[%clk 0:02:59.5]} 2. e4 {[%clk 0:03:00.1]}
2... c5 {[%clk 0:02:59.1]} 3. Bc4 {[%clk 0:02:57.7]} 3... Bg7 {[%clk 0:02:58.6]}
4. c3 {[%clk 0:02:50.8]} 4... d6 {[%clk 0:02:49.4]} 5. d4 {[%clk 0:02:50.2]}
5... cxd4 {[%clk 0:02:49.4]} 6. cxd4 {[%clk 0:02:51.1]} 6... Nf6 {[%clk
0:02:48.8]} 7. Nc3 {[%clk 0:02:50.4]} 7... O-O {[%clk 0:02:48.5]} 8. O-O {[%clk
0:02:42.1]} 8... Bg4 {[%clk 0:02:35]} 9. Be2 {[%clk 0:02:35.9]} 9... Nc6 {[%clk
0:02:28.7]} 10. Be3 {[%clk 0:02:35.6]} 10... Bxf3 {[%clk 0:02:24]} 11. Bxf3
{[%clk 0:02:35.6]} 11... e5 {[%clk 0:02:24.7]} 12. d5 {[%clk 0:02:33.5]} 12...
Nd4 {[%clk 0:02:24.5]} 13. Bxd4 {[%clk 0:02:30.8]} 13... exd4 {[%clk 0:02:25.4]}
14. Qxd4 {[%clk 0:02:28.6]} 14... Nd7 {[%clk 0:02:17.3]} 15. Qd2 {[%clk
0:02:22.5]} 15... Re8 {[%clk 0:02:09.1]} 16. Rfe1 {[%clk 0:02:15.5]} 16... Rc8
{[%clk 0:01:59.5]} 17. Bg4 {[%clk 0:02:01.5]} 17... Rc5 {[%clk 0:01:34.7]} 18.
Rad1 {[%clk 0:01:42.7]} 18... Ne5 {[%clk 0:01:28.6]} 19. Be2 {[%clk 0:01:42.7]}
19... Nc4 {[%clk 0:01:22.7]} 20. Bxc4 {[%clk 0:01:39.2]} 20... Rxc4 {[%clk
0:01:23.6]} 21. Qd3 {[%clk 0:01:32.2]} 21... Bxc3 {[%clk 0:00:37.4]} 22. Qxc4
{[%clk 0:01:27.1]} 22... Bxe1 {[%clk 0:00:37.1]} 23. Rxe1 {[%clk 0:01:28]} 23...
Qa5 {[%clk 0:00:35.4]} 24. b4 {[%clk 0:01:16.6]} 24... Qa3 {[%clk 0:00:31.3]}
25. h4 {[%clk 0:01:15.6]} 25... h5 {[%clk 0:00:30.7]} 26. Re3 {[%clk 0:01:10]}
26... Qb2 {[%clk 0:00:25.9]} 27. g3 {[%clk 0:01:09.5]} 27... Qe5 {[%clk
0:00:23.6]} 28. Kg2 {[%clk 0:01:09.2]} 28... a6 {[%clk 0:00:22.9]} 29. a4 {[%clk
0:01:07.5]} 29... Re7 {[%clk 0:00:20.4]} 30. b5 {[%clk 0:01:06.6]} 30... axb5
{[%clk 0:00:20.5]} 31. Qxb5 {[%clk 0:01:07.3]} 31... Qd4 {[%clk 0:00:16]} 32.
Qe2 {[%clk 0:00:42.4]} 32... f5 {[%clk 0:00:09.3]} 33. f3 {[%clk 0:00:20.7]}
33... Qxa4 {[%clk 0:00:03.7]} 34. e5 {[%clk 0:00:20.1]} 34... dxe5 {[%clk
0:00:03.7]} 35. Rxe5 {[%clk 0:00:20.7]} 35... Rxe5 {[%clk 0:00:03.6]} 36. Qxe5
{[%clk 0:00:20.6]} 36... Qc2+ {[%clk 0:00:02.6]} 37. Kh3 {[%clk 0:00:20.7]}
37... Kf7 {[%clk 0:00:02.8]} 38. Qe6+ {[%clk 0:00:20.8]} 38... Kf8 {[%clk
0:00:03.3]} 39. Qf6+ {[%clk 0:00:20.6]} 39... Ke8 {[%clk 0:00:03.2]} 40. Qxg6+
{[%clk 0:00:20.9]} 40... Kd7 {[%clk 0:00:04]} 41. Qe6+ {[%clk 0:00:20.6]} 41...
Kc7 {[%clk 0:00:02.1]} 42. d6+ {[%clk 0:00:21.1]} 1-0

[Event "Late-Titled-Tuesday-Blitz-November-28-2023"]
[Site "Chess.com"]
[Date "2023.11.28"]
[Round "5"]
[White "TrenerChos"]
[Black "Ali_rastbod"]
[Result "0-1"]
[WhiteElo "2597"]
[BlackElo "2787"]
[TimeControl "180+1"]
[EndTime "14:53:48 PST"]
[Termination "Ali_rastbod won on time"]

1. d4 {[%clk 0:03:00.9]} 1... g6 {[%clk 0:02:56.4]} 2. c4 {[%clk 0:02:58.2]}
2... Bg7 {[%clk 0:02:56.9]} 3. Nf3 {[%clk 0:02:58.1]} 3... d6 {[%clk 0:02:56.9]}
4. e3 {[%clk 0:02:57.7]} 4... Nd7 {[%clk 0:02:55.3]} 5. b3 {[%clk 0:02:58]} 5...
e5 {[%clk 0:02:56]} 6. Bb2 {[%clk 0:02:57.9]} 6... e4 {[%clk 0:02:56.1]} 7. Nfd2
{[%clk 0:02:56.7]} 7... f5 {[%clk 0:02:56.8]} 8. Nc3 {[%clk 0:02:56.5]} 8...
Ndf6 {[%clk 0:02:57.5]} 9. Be2 {[%clk 0:02:56.1]} 9... Ne7 {[%clk 0:02:58.2]}
10. O-O {[%clk 0:02:55.6]} 10... c6 {[%clk 0:02:58.8]} 11. f3 {[%clk 0:02:55.6]}
11... d5 {[%clk 0:02:59]} 12. cxd5 {[%clk 0:02:54.9]} 12... cxd5 {[%clk
0:02:58.8]} 13. fxe4 {[%clk 0:02:55]} 13... fxe4 {[%clk 0:02:57.9]} 14. Bb5+
{[%clk 0:02:37.7]} 14... Bd7 {[%clk 0:02:56.6]} 15. Ba3 {[%clk 0:02:33.3]} 15...
O-O {[%clk 0:02:46.6]} 16. Qe2 {[%clk 0:02:26.8]} 16... Re8 {[%clk 0:02:41.5]}
17. Na4 {[%clk 0:02:24]} 17... Nf5 {[%clk 0:02:36]} 18. Bxd7 {[%clk 0:02:20.3]}
18... Qxd7 {[%clk 0:02:36.1]} 19. Nc5 {[%clk 0:02:19.7]} 19... Qe7 {[%clk
0:02:31.1]} 20. g4 {[%clk 0:02:15.9]} 20... Nxg4 {[%clk 0:02:17.6]} 21. Qxg4
{[%clk 0:01:14.7]} 21... Nxe3 {[%clk 0:02:16.5]} 22. Qh3 {[%clk 0:01:02.6]}
22... Nxf1 {[%clk 0:02:12.5]} 23. Rxf1 {[%clk 0:00:43.4]} 23... Bxd4+ {[%clk
0:01:03.5]} 24. Kh1 {[%clk 0:00:40.6]} 24... Bxc5 {[%clk 0:01:03.9]} 25. Bb2
{[%clk 0:00:37.8]} 25... Rf8 {[%clk 0:01:03.5]} 26. Rc1 {[%clk 0:00:33.1]} 26...
d4 {[%clk 0:00:43.1]} 27. Nc4 {[%clk 0:00:05.1]} 27... e3 {[%clk 0:00:40.9]} 28.
b4 {[%clk 0:00:05]} 28... Qe4+ {[%clk 0:00:38.4]} 29. Qg2 {[%clk 0:00:04.8]}
29... Qxg2+ {[%clk 0:00:36]} 30. Kxg2 {[%clk 0:00:05.7]} 30... d3 {[%clk
0:00:26.6]} 31. bxc5 {[%clk 0:00:04.4]} 31... d2 {[%clk 0:00:26.6]} 32. Ra1
{[%clk 0:00:03.8]} 32... Rae8 {[%clk 0:00:23.3]} 33. Bc3 {[%clk 0:00:02]} 33...
Rf2+ {[%clk 0:00:16.7]} 34. Kg3 {[%clk 0:00:01.7]} 34... Rf5 {[%clk 0:00:11.1]}
35. Bd4 {[%clk 0:00:01.2]} 35... e2 {[%clk 0:00:10.5]} 0-1

[Event "Late-Titled-Tuesday-Blitz-November-28-2023"]
[Site "Chess.com"]
[Date "2023.11.28"]
[Round "5"]
[White "OPQRC"]
[Black "szefru"]
[Result "1-0"]
[WhiteElo "2537"]
[BlackElo "2328"]
[TimeControl "180+1"]
[EndTime "14:53:52 PST"]
[Termination "OPQRC won by resignation"]

1. e4 {[%clk 0:02:58.9]} 1... c5 {[%clk 0:02:56]} 2. Nf3 {[%clk 0:02:58.9]} 2...
Nc6 {[%clk 0:02:55.6]} 3. Bb5 {[%clk 0:02:53.8]} 3... g6 {[%clk 0:02:50]} 4. O-O
{[%clk 0:02:53.5]} 4... Bg7 {[%clk 0:02:49.9]} 5. Re1 {[%clk 0:02:54]} 5... Nf6
{[%clk 0:02:48.5]} 6. Nc3 {[%clk 0:02:50.3]} 6... d6 {[%clk 0:02:32.1]} 7. e5
{[%clk 0:02:49.8]} 7... dxe5 {[%clk 0:02:32.5]} 8. Nxe5 {[%clk 0:02:50.5]} 8...
Qc7 {[%clk 0:02:32.8]} 9. Qf3 {[%clk 0:02:42]} 9... Bd7 {[%clk 0:02:29.8]} 10.
Nxd7 {[%clk 0:02:39.1]} 10... Qxd7 {[%clk 0:02:26.9]} 11. d3 {[%clk 0:02:16.1]}
11... O-O {[%clk 0:02:24]} 12. Bxc6 {[%clk 0:02:15.7]} 12... bxc6 {[%clk
0:02:24]} 13. Na4 {[%clk 0:02:12.7]} 13... Qd6 {[%clk 0:02:18.2]} 14. Bf4 {[%clk
0:02:10.7]} 14... Qd4 {[%clk 0:02:18.1]} 15. b3 {[%clk 0:02:00.7]} 15... Rac8
{[%clk 0:02:11.8]} 16. Be3 {[%clk 0:01:58.4]} 16... Qh4 {[%clk 0:01:37.6]} 17.
Rad1 {[%clk 0:01:27.3]} 17... Ng4 {[%clk 0:01:33.9]} 18. h3 {[%clk 0:01:21.6]}
18... Nxe3 {[%clk 0:01:32.6]} 19. Rxe3 {[%clk 0:01:22.5]} 19... Bd4 {[%clk
0:01:29.4]} 20. Re4 {[%clk 0:01:22.2]} 20... Qg5 {[%clk 0:01:14.2]} 21. c3
{[%clk 0:01:21]} 21... Bf6 {[%clk 0:01:05.9]} 22. Rc4 {[%clk 0:01:03]} 22...
Rfd8 {[%clk 0:00:58.2]} 23. Nxc5 {[%clk 0:01:01.3]} 23... Bg7 {[%clk 0:00:36.2]}
24. d4 {[%clk 0:00:56.3]} 24... e5 {[%clk 0:00:35.2]} 25. Ne4 {[%clk 0:00:51.4]}
25... Qe7 {[%clk 0:00:35.1]} 26. d5 {[%clk 0:00:38.3]} 26... cxd5 {[%clk
0:00:35.1]} 27. Rxc8 {[%clk 0:00:38.2]} 27... Rxc8 {[%clk 0:00:35.6]} 28. Rxd5
{[%clk 0:00:38.2]} 28... f5 {[%clk 0:00:34.8]} 29. Nd6 {[%clk 0:00:24.5]} 29...
Rd8 {[%clk 0:00:33.3]} 30. Qd1 {[%clk 0:00:24.7]} 30... Rf8 {[%clk 0:00:13.1]}
31. c4 {[%clk 0:00:24.1]} 31... e4 {[%clk 0:00:13]} 32. c5 {[%clk 0:00:22.1]}
32... e3 {[%clk 0:00:12.9]} 33. fxe3 {[%clk 0:00:19.1]} 33... Qxe3+ {[%clk
0:00:13.8]} 34. Kh1 {[%clk 0:00:19.1]} 34... Be5 {[%clk 0:00:13.7]} 35. Nc4
{[%clk 0:00:14.7]} 35... Qf4 {[%clk 0:00:08.5]} 36. Nxe5 {[%clk 0:00:10.3]}
36... Re8 {[%clk 0:00:08.8]} 37. c6 {[%clk 0:00:08.6]} 37... Re6 {[%clk
0:00:07.2]} 38. c7 {[%clk 0:00:08.4]} 1-0